Workbook

Sheet SIMULAR CARGOS
B1: SIMULADOR DE CALCULO PERSONAL NODOCENTE
N4: =+IF(B7>15,IF(O6=0,1,2),2) -> 1 | Q4: contratos | R4: haberes
B5: PERIODO | C5: CATEGORIA | D5: ANTIGÜEDAD | E5: TITULO | F5: FALLA DE CAJA / RIESGO | G5: CARGA HORARIA SEMANAL | H5: ADICIONAL PERMANENCIA EN LA CATEGORIA (2 - 4 - 6 - 8 AÑOS) | I5: BASICO | J5: ANTIGÜEDAD | K5: TITULO | L5: RIESGO / FALLA DE CAJA | M5: PERMANENCIA | N5: =+IF(B7>15,IF(O6=0,"ADICIONAL POR GRADO - RB ( 72 )","ADICIONAL POR GRADO - RNB ( 3 )"),"ADICIONAL POR GRADO - RNB ( 3 )") -> ADICIONAL POR GRADO - RB ( 72 ) | O5: ESTIMULO PARA CAPACITACION - NRNB ( 163 ) | P5: =+IF(B7>17,"ADICIONAL CAPACITACION - RB ( 173 )","ADICIONAL CAPACITACION - RNB ( 173 )") -> ADICIONAL CAPACITACION - RB ( 173 ) | Q5: MONTO BRUTO A FACTURAR | R5: BRUTO | S5: NETO | T5: GASTO TOTAL
B6: Junio 2020 | C6: Categoria 1 | D6: 10 | E6: POSGRADO | F6: NO TIENE | G6: 35 | H6: SIN | I6: =VLOOKUP(C6,BRUTOS,B7,FALSE)/35*G6 -> 92142.08 | J6: =IF(B7>17,IF(C7<4,I6*D6/100*1.8,I6*D6/100*2),IF(C7<4,I6*D6/100*1.4,I6*D6/100*2)) -> 16585.5744 | K6: =(IF(E6="SECUNDARIO",(INDEX(BASICOS!$A$3:$V$9,7,B7)*0.175/35*G6),VLOOKUP(C6,BASICOS!$A$3:$V$9,B7,FALSE)*VLOOKUP(E6,BASICOS!$N$22:$P$27,3,FALSE)/35*G6)) -> 27642.624 | L6: =ROUND((IF(F6="RIESGO",I6*0.1,(IF(F6="FALLA CAJA",VLOOKUP("Categoria 7",BRUTOS,VLOOKUP(B6,ORDEN,2,FALSE),FALSE))*0.25)))/35*G6,2) -> 0 | M6: =ROUND((+INDEX('SIMULAR CARGOS'!PERMANENCIA,'SIMULAR CARGOS'!C7,'SIMULAR CARGOS'!B7)*VLOOKUP(H6,PORCPERMA,2,FALSE))/35*G6,2) -> 0 | N6: =(IF(B8=0,0,+INDEX(ADIC_GRADO,'SIMULAR CARGOS'!C7,'SIMULAR CARGOS'!B8)))/35*G6 -> 5528.52 | O6: =(IF(B9=0,0,+INDEX(ESTIM_CAPACITACION,'SIMULAR CARGOS'!C7,B9)))/35*G6 -> 0 | P6: =ROUND((+IF(B10=0,0,INDEX(ADICCAPACITACION,C7,B10)))/35*G6,2) -> 2764.26 | Q6: =+SUM(I6:P6) -> 144663.0584 | R6: =+SUM(I6:P6) -> 144663.0584 | S6: =+((R6-O6)*0.83)+O6 -> 120070.3385 | T6: =((R6-O6)*1.18)+O6 -> 170702.4089
A7: ORDEN BASICO | B7: =+VLOOKUP(B6,BASICOS!$A$21:$B$56,2,FALSE) -> 22 | C7: =+VLOOKUP(C6,BASICOS!$K$21:$L$28,2) -> 1 | G7: 35
A8: ORDEN GRADO | B8: =+VLOOKUP(B6,ORDEN,3,FALSE) -> 11 | N8: =+IF(B7=18,1,0) -> 0
A9: ORDEN ESTIMULO | B9: =+VLOOKUP(B6,ORDEN,4,FALSE) -> 0
A10: ORDEN ADIC ESTIMULO | B10: =+VLOOKUP(B6,ORDEN,5,FALSE) -> 13
T13: Versión Instructivo de Liquidación 18/03/2020
A25: 0.5
A26: 1

Sheet HORAS EXTRAS (hidden)
C2: PERIODO | D2: CATEGORIA | E2: ANTIGÜEDAD | F2: TITULO | G2: FALLA DE CAJA / RIESGO | H2: PERMANENCIA
C3: =+'SIMULAR CARGOS'!B6 -> Junio 2020 | D3: =+'SIMULAR CARGOS'!C6 -> Categoria 1 | E3: =+'SIMULAR CARGOS'!D6 -> 10 | F3: =+'SIMULAR CARGOS'!E6 -> POSGRADO | G3: =+'SIMULAR CARGOS'!F6 -> NO TIENE | H3: =+'SIMULAR CARGOS'!H6 -> SIN
C4: CALCULADOR DE HORAS EXTRAS
C5: BRUTO | D5: DEDICACIÓN HORARIA | E5: TIPO | F5: CANTIDAD HORAS EXTRAS | G5: VALOR P/HORA | H5: MONTO HORAS EXTRAS
A6: =+IF(+VLOOKUP('SIMULAR CARGOS'!B6,BASICOS!$A$21:$F$56,6,FALSE)=0,SUM('SIMULAR CARGOS'!I6:M6),IF('SIMULAR CARGOS'!B7=17,IF(VLOOKUP('SIMULAR CARGOS'!C6,BASICOS!$K$21:$L$28,2,0)>4,SUM('SIMULAR CARGOS'!I6:N6),SUM('SIMULAR CARGOS'!I6:M6)),SUM('SIMULAR CARGOS'!I6:N6))) -> 141898.7984 | C6: =+IF('SIMULAR CARGOS'!B7>17,'HORAS EXTRAS'!A7,'HORAS EXTRAS'!A6) -> 144663.0584 | D6: =+'SIMULAR CARGOS'!G6 -> 35 | E6: 0.5 | F6: 0 | G6: =+(C6/(D6/5*22)) -> 939.3705091 | H6: =+IF(E6=50%,G6*F6*1.5,G6*F6*2) -> 0
A7: =+IF(+VLOOKUP('SIMULAR CARGOS'!B6,BASICOS!$A$21:$F$56,6,FALSE)=0,SUM('SIMULAR CARGOS'!I6:P6),IF('SIMULAR CARGOS'!B7=17,IF(VLOOKUP('SIMULAR CARGOS'!C6,BASICOS!$K$21:$L$28,2,0)>4,SUM('SIMULAR CARGOS'!I6:P6),SUM('SIMULAR CARGOS'!I6:P6)),SUM('SIMULAR CARGOS'!I6:P6))) -> 144663.0584 | C7: =+IF('SIMULAR CARGOS'!B7>17,'HORAS EXTRAS'!A7,'HORAS EXTRAS'!A6) -> 144663.0584 | D7: =+D6 -> 35 | E7: 1 | F7: 0 | G7: 939.3705091 | H7: =G7*F7*2 -> 0
F8: MONTO BRUTO | H8: =SUM(H6:H7) -> 0
F9: MONTO NETO | H9: =+H8*0.83 -> 0

Sheet BASICOS (hidden)
A1: ORDEN DE TABLA | B1: 2 | C1: 3 | D1: 4 | E1: 5 | F1: 6 | G1: 7 | H1: 8 | I1: 9 | J1: 10 | K1: 11 | L1: 12 | M1: 13 | N1: 14 | O1: 15 | P1: 16 | Q1: 17 | R1: 18 | S1: 19 | T1: 20 | U1: 21 | V1: 22 | W1: 23 | X1: 24
A2: Categoría | B2: Básico Enero 2017 | C2: Básico Marzo 2017 | D2: Básico Junio 2017 | E2: Básico Septiembre 2017 | F2: Base cálculo 2018 Febrero | G2: Básico Marzo 2018 | H2: Básico Mayo 2018 | I2: Básico Agosto 2018 | J2: Básico Septiembre 2018 | K2: Básico MARZO 2019 | L2: Básico ABRIL 2019 | M2: Básico JUNIO 2019 | N2: Básico SEPTIEMBRE 2019 | O2: Básico OCTUBRE 2019 | P2: Básico NOVIEMBRE 2019 | Q2: Básico DICIEMBRE 2019 | R2: Básico ENERO 2020 | S2: Básico MARZO 2020 | T2: Básico ABRIL 2020 | U2: Básico MAYO 2020 | V2: Básico JUNIO 2020
A3: Categoria 1 | B3: 37860.3 | C3: 39376.1 | D3: 42526.1 | E3: 46247.2 | F3: 47476.8 | G3: 48901.68 | H3: 50325.984 | I3: 52699.88 | J3: 54598.98 | K3: 56236.95 | L3: 57874.92 | M3: 60604.87 | N3: 63334.82 | O3: 68794.82 | P3: 70432.82 | Q3: 70432.82 | R3: =70432.82+9000 -> 79432.82 | S3: 87137.81 | T3: 88726.46 | U3: 90553.42 | V3: 92142.08
A4: Categoria 2 | B4: 31550 | C4: 32813.5 | D4: 35438.5 | E4: 38539.4 | F4: 39563.8 | G4: 40751.5 | H4: 41938.45 | I4: 43916.65 | J4: 45499.25 | K4: 46864.23 | L4: 48229.21 | M4: 50504.17 | N4: 52779.13 | O4: 57329.13 | P4: 58694.13 | Q4: 58694.13 | R4: =58694.13+7500 -> 66194.13 | S4: 72614.97 | T4: 73938.85 | U4: 75461.31 | V4: 76785.2
A5: Categoria 3 | B5: 26248.5 | C5: 27300.7 | D5: 29484.8 | E5: 32064.7 | F5: 32915.6 | G5: 33905.17 | H5: 34892.72 | I5: 36538.62 | J5: 37855.32 | K5: 38990.98 | L5: 40126.64 | M5: 42019.41 | N5: 43912.18 | O5: 47698.18 | P5: 48834.18 | Q5: 48834.18 | R5: =48834.18+6240 -> 55074.18 | S5: 60416.38 | T5: 61517.86 | U5: 62784.57 | V5: 63886.05
A6: Categoria 4 | B6: 21832.5 | C6: 22706.8 | D6: 24523.4 | E6: 26669.2 | F6: 27377.9 | G6: 28199.95 | H6: 29021.3 | I6: 30390.2 | J6: 31485.3 | K6: 32429.86 | L6: 33374.42 | M6: 34948.69 | N6: 36522.96 | O6: 39671.96 | P6: 40616.96 | Q6: 40616.96 | R6: =40616.96+5190 -> 45806.96 | S6: 50250.24 | T6: 51166.38 | U6: 52219.94 | V6: 53136.08
A7: Categoria 5 | B7: 18165.8 | C7: 18900.5 | D7: 20412.6 | E7: 22198.7 | F7: 22779.9 | G7: 23472.84 | H7: 24156.49 | I7: 25295.99 | J7: 26207.59 | K7: 26993.82 | L7: 27780.05 | M7: 29090.43 | N7: 30400.81 | O7: 33021.81 | P7: 33807.81 | Q7: =33807.81+4320 -> 38127.81 | R7: 38127.81 | S7: 41826.21 | T7: 42588.77 | U7: 43465.71 | V7: 44228.26
A8: Categoria 6 | B8: 15143.6 | C8: 15750.4 | D8: 17010.4 | E8: 18498.8 | F8: 18990.1 | G8: 19560.57 | H8: 20130.273 | I8: 21079.77 | J8: 21839.37 | K8: 22494.55 | L8: 23149.73 | M8: 24241.7 | N8: 25333.67 | O8: 27517.67 | P8: 28172.67 | Q8: =28172.67+3600 -> 31772.67 | R8: 31772.67 | S8: 34854.62 | T8: 35490.08 | U8: 36220.85 | V8: 36856.3
A9: Categoria 7 | B9: 12620.5 | C9: 13125.3 | D9: 14175.3 | E9: 15415.7 | F9: 15826.2 | G9: 16300.51 | H9: 16775.26 | I9: 17566.56 | J9: 18199.56 | K9: 18745.55 | L9: 19291.54 | M9: 20201.52 | N9: 21111.5 | O9: 22931.5 | P9: 23477.5 | Q9: =23477.5+3000 -> 26477.5 | R9: 26477.5 | S9: 29045.82 | T9: 29575.37 | U9: 30184.35 | V9: 30713.9
A11: PERMANENCIA DIFERENCIAS
A12: Categoria 1 | B12: =+B3*0.37 -> 14008.311 | C12: 14569.157 | D12: 15734.657 | E12: 17111.464 | F12: 17566.416 | G12: 18093.6216 | H12: 18620.61408 | I12: 19498.9556 | J12: 20201.6226 | K12: 20807.6715 | L12: 21413.7204 | M12: 22423.8019 | N12: 23433.8834 | O12: 25454.0834 | P12: 26060.1434 | Q12: 26060.1434 | R12: 29390.1434 | S12: 32240.9897 | T12: 32828.7902 | U12: 33504.7654 | V12: 34092.5696
A13: Categoria 2 | B13: =+B3-B4 -> 6310.3 | C13: 6562.6 | D13: 7087.6 | E13: 7707.8 | F13: 7913 | G13: 8150.18 | H13: 8387.534 | I13: 8783.23 | J13: 9099.73 | K13: 9372.72 | L13: 9645.71 | M13: 10100.7 | N13: 10555.69 | O13: 11465.69 | P13: 11738.69 | Q13: 11738.69 | R13: 13238.69 | S13: 14522.84 | T13: 14787.61 | U13: 15092.11 | V13: 15356.88
A14: Categoria 3 | B14: =+B4-B5 -> 5301.5 | C14: 5512.8 | D14: 5953.7 | E14: 6474.7 | F14: 6648.2 | G14: 6846.33 | H14: 7045.73 | I14: 7378.03 | J14: 7643.93 | K14: 7873.25 | L14: 8102.57 | M14: 8484.76 | N14: 8866.95 | O14: 9630.95 | P14: 9859.95 | Q14: 9859.95 | R14: 11119.95 | S14: 12198.59 | T14: 12420.99 | U14: 12676.74 | V14: 12899.15
A15: Categoria 4 | B15: =+B5-B6 -> 4416 | C15: 4593.9 | D15: 4961.4 | E15: 5395.5 | F15: 5537.7 | G15: 5705.22 | H15: 5871.42 | I15: 6148.42 | J15: 6370.02 | K15: 6561.12 | L15: 6752.22 | M15: 7070.72 | N15: 7389.22 | O15: 8026.22 | P15: 8217.22 | Q15: 8217.22 | R15: 9267.22 | S15: 10166.14 | T15: 10351.48 | U15: 10564.63 | V15: 10749.97
A16: Categoria 5 | B16: =+B6-B7 -> 3666.7 | C16: 3806.3 | D16: 4110.8 | E16: 4470.5 | F16: 4598 | G16: 4727.11 | H16: 4864.81 | I16: 5094.21 | J16: 5277.71 | K16: 5436.04 | L16: 5594.37 | M16: 5858.26 | N16: 6122.15 | O16: 6650.15 | P16: 6809.15 | Q16: 2489.15 | R16: 7679.15 | S16: 8424.03 | T16: 8577.61 | U16: 8754.23 | V16: 8907.82
A17: Categoria 6 | B17: =+B7-B8 -> 3022.2 | C17: 3150.1 | D17: 3402.2 | E17: 3699.9 | F17: 3789.8 | G17: 3912.27 | H17: 4026.217 | I17: 4216.22 | J17: 4368.22 | K17: 4499.27 | L17: 4630.32 | M17: 4848.73 | N17: 5067.14 | O17: 5504.14 | P17: 5635.14 | Q17: 6355.14 | R17: 6355.14 | S17: 6971.59 | T17: 7098.69 | U17: 7244.86 | V17: 7371.96
A18: Categoria 7 | B18: =+B8-B9 -> 2523.1 | C18: 2625.1 | D18: 2835.1 | E18: 3083.1 | F18: 3163.9 | G18: 3260.06 | H18: 3355.013 | I18: 3513.21 | J18: 3639.81 | K18: 3749 | L18: 3858.19 | M18: 4040.18 | N18: 4222.17 | O18: 4586.17 | P18: 4695.17 | Q18: 5295.17 | R18: 5295.17 | S18: 5808.8 | T18: 5914.71 | U18: 6036.5 | V18: 6142.4
A21: Columna1 | B21: ORDEN BASICO | C21: ORDEN GRADO | D21: ORDEN ESTIMULO | E21: ORDEN ADIC CAPACITACION | F21: NUEVO GRADO | H21: ANTIG PERMANENCIA | I21: % | K21: Categoría | L21: ORDEN | N21: Porcentajes Vigentes Adicionales por Título
A22: Junio 2020 | B22: 22 | C22: 11 | D22: 0 | E22: 13 | F22: 1 | H22: 8 AÑOS | I22: 0.7 | K22: Categoria 1 | L22: 1 | N22: POSGRADO | O22: POSG | P22: 0.3 | Q22: sobre categoria de revista
A23: Mayo 2020 | B23: 21 | C23: 10 | D23: 0 | E23: 12 | F23: 1 | H23: 6 AÑOS | I23: 0.45 | K23: Categoria 2 | L23: 2 | N23: UNIVERSITARIO | O23: UNIV | P23: 0.25 | Q23: sobre categoria de revista
A24: Abril 2020 | B24: 20 | C24: 9 | D24: 0 | E24: 11 | F24: 1 | H24: 4 AÑOS | I24: 0.25 | K24: Categoria 3 | L24: 3 | N24: TEC GESTION UNIVERSITARIA | O24: TGUN | P24: 0.2 | Q24: sobre categoria de revista
A25: Marzo 2020 | B25: 19 | C25: 8 | D25: 0 | E25: 10 | F25: 1 | H25: 2 AÑOS | I25: 0.1 | K25: Categoria 4 | L25: 4 | N25: TERCIARIO | O25: TERC | P25: 0.1 | Q25: sobre categoria de revista
A26: Febrero 2020 | B26: 18 | C26: 7 | D26: 0 | E26: 9 | F26: 1 | H26: SIN | I26: 0 | K26: Categoria 5 | L26: 5 | N26: SECUNDARIO | O26: SECU | P26: 0.175 | Q26: sobre categoria 7
A27: Enero 2020 | B27: 18 | C27: 7 | D27: 0 | E27: 9 | F27: 1 | K27: Categoria 6 | L27: 6 | N27: PRIMARIO | O27: PRIM | P27: 0
A28: Diciembre 2019 | B28: 17 | C28: 6 | D28: 4 | E28: 8 | F28: 1 | K28: Categoria 7 | L28: 7
A29: Noviembre 2019 | B29: 16 | C29: 5 | D29: 3 | E29: 7
A30: Octubre 2019 | B30: 15 | C30: 5 | D30: 3 | E30: 6 | H30: FALLA CAJA | I30: 0.25 | J30: sobre categoria 7
A31: Septiembre 2019 | B31: 14 | C31: 5 | D31: 3 | E31: 5 | H31: RIESGO | I31: 0.1 | J31: sobre categoria de revista
A32: Agosto 2019 | B32: 13 | C32: 5 | D32: 3 | E32: 4 | H32: NO TIENE | I32: 0 | N32: NUEVO GRADO
A33: Julio 2019 | B33: 13 | C33: 5 | D33: 3 | E33: 3 | N33: Categoría | O33: %
A34: Junio 2019 | B34: 13 | C34: 5 | D34: 3 | E34: 3 | N34: Categoria 1 | O34: 6
A35: Mayo 2019 | B35: 12 | C35: 5 | D35: 3 | E35: 2 | N35: Categoria 2 | O35: 7
A36: Abril 2019 | B36: 12 | C36: 5 | D36: 3 | E36: 2 | N36: Categoria 3 | O36: 8
A37: Marzo 2019 | B37: 11 | C37: 5 | D37: 3 | N37: Categoria 4 | O37: 11
A38: Febrero 2019 | B38: 10 | C38: 5 | D38: 3 | N38: Categoria 5 | O38: 14
A39: Enero 2019 | B39: 10 | C39: 5 | D39: 2 | N39: Categoria 6 | O39: 23
A40: Diciembre 2018 | B40: 10 | C40: 5 | N40: Categoria 7 | O40: 27
A41: Noviembre 2018 | B41: 10 | C41: 5
A42: Octubre 2018 | B42: 10 | C42: 5
A43: Septiembre 2018 | B43: 10 | C43: 4
A44: Agosto 2018 | B44: 9 | C44: 3
A45: Julio 2018 | B45: 8 | C45: 3
A46: Junio 2018 | B46: 8 | C46: 3
A47: Mayo 2018 | B47: 8 | C47: 2
A48: Abril 2018 | B48: 7 | C48: 2
A49: Marzo 2018 | B49: 7 | C49: 2
A50: Febrero 2018 | B50: 6 | C50: 2
A51: Enero 2018 | B51: 5 | C51: 2
A52: Septiembre 2017 | B52: 5 | C52: 2
A53: Junio 2017 | B53: 4 | C53: 2
A54: Abril 2017 | B54: 3 | C54: 2 | K54: AGENTE | L54: DNI | M54: SISTEMAS QUE ACCEDEN | N54: TRAEN COMPU
A55: Marzo 2017 | B55: 3 | K55: NICOLAS GAETAN | L55: 22965480 | M55: CONVENIOS, PILAGA, MAPUCHE, DESIGNACIONES, COMDOC, ARCHIVOS COMPARTIDOS DEL SERVIDOR | N55: si
A56: Enero 2017 | B56: 2 | K56: PABLO CASTAÑAREZ | L56: 25296370 | M56: MAPUCHE, DESIGNACIONES, COMDOC, ARCHIVOS COMPARTIDOS DEL SERVIDOR | N56: no
K57: DIEGO RIPOLL | L57: 29506475 | M57: MAPUCHE, DESIGNACIONES, COMDOC, ARCHIVOS COMPARTIDOS DEL SERVIDOR | N57: no
K58: MALENA DIAZ | L58: 37184554 | M58: MAPUCHE, DESIGNACIONES, COMDOC, ARCHIVOS COMPARTIDOS DEL SERVIDOR | N58: no
K59: BETIAN VOLPE | L59: 31826696 | M59: CONVENIOS, ARCHIVOS COMPARTIDOS DEL SERVIDOR | N59: no
A64: 0 | B64: 35
A65: 1 | B65: 34.5
A66: 2 | B66: 34
A67: 3 | B67: 33.5
A68: 4 | B68: 33
A69: 5 | B69: 32.5
A70: 6 | B70: 32
A71: 7 | B71: 31.5
A72: 8 | B72: 31
A73: 9 | B73: 30.5
A74: 10 | B74: 30
A75: 11 | B75: 29.5
A76: 12 | B76: 29
A77: 13 | B77: 28.5
A78: 14 | B78: 28
A79: 15 | B79: 27.5
A80: 16 | B80: 27
A81: 17 | B81: 26.5
A82: 18 | B82: 26
A83: 19 | B83: 25.5
A84: 20 | B84: 25
A85: 21 | B85: 24.5
A86: 22 | B86: 24
A87: 23 | B87: 23.5
A88: 24 | B88: 23
A89: 25 | B89: 22.5
A90: 26 | B90: 22
A91: 27 | B91: 21.5
A92: 28 | B92: 21
A93: 29 | B93: 20.5
A94: 30 | B94: 20
A95: 31 | B95: 19.5
A96: 32 | B96: 19
A97: 33 | B97: 18.5
A98: 34 | B98: 18
A99: 35 | B99: 17.5
A100: 36 | B100: 17
A101: 37 | B101: 16.5
A102: 38 | B102: 16
A103: 39 | B103: 15.5
A104: 40 | B104: 15
A105: 41 | B105: 14.5
A106: 42 | B106: 14
A107: 43 | B107: 13.5
A108: 44 | B108: 13
A109: 45 | B109: 12.5
A110: 46 | B110: 12
A111: 47 | B111: 11.5
A112: 48 | B112: 11
A113: 49 | B113: 10.5
A114: 50 | B114: 10
B115: 9.5
B116: 9
B117: 8.5
B118: 8
B119: 7.5
B120: 7
B121: 6.5
B122: 6
B123: 5.5
B124: 5
B125: 4.5
B126: 4
B127: 3.5
B128: 3
B129: 2.5
B130: 2
B131: 1.5
B132: 1
B133: 0.5
B134: 0

Sheet ADIC GRADO (hidden)
B1: 2 | C1: 3 | D1: 4 | E1: 5 | F1: 6 | G1: 7 | H1: 8 | I1: 9 | J1: 10 | K1: 11
A2: Categoría | B2: abril 2017 | C2: junio 2018 | D2: setiembre 2018 | E2: octubre 2018 | F2: diciembre 2019 | G2: enero 2020 | H2: marzo 2020 | I2: abril 2020 | J2: mayo 2020 | K2: junio 2020
A3: Categoria 1 | E3: 4800 | F3: 4800 | G3: =FIXED(+BASICOS!R3*0.06,2) -> 4.765,97 | H3: =FIXED(+BASICOS!S3*0.06,2) -> 5.228,27 | I3: =FIXED(+BASICOS!T3*0.06,2) -> 5.323,59 | J3: =FIXED(+BASICOS!U3*0.06,2) -> 5.433,21 | K3: =FIXED(+BASICOS!V3*0.06,2) -> 5.528,52
A4: Categoria 2 | E4: 4200 | F4: 4200 | G4: =FIXED(+BASICOS!R4*0.07,2) -> 4.633,59 | H4: =FIXED(+BASICOS!S4*0.07,2) -> 5.083,05 | I4: =FIXED(+BASICOS!T4*0.07,2) -> 5.175,72 | J4: =FIXED(+BASICOS!U4*0.07,2) -> 5.282,29 | K4: =FIXED(+BASICOS!V4*0.07,2) -> 5.374,96
A5: Categoria 3 | E5: 3600 | F5: 3600 | G5: =FIXED(+BASICOS!R5*0.08,2) -> 4.405,93 | H5: =FIXED(+BASICOS!S5*0.08,2) -> 4.833,31 | I5: =FIXED(+BASICOS!T5*0.08,2) -> 4.921,43 | J5: =FIXED(+BASICOS!U5*0.08,2) -> 5.022,77 | K5: =FIXED(+BASICOS!V5*0.08,2) -> 5.110,88
A6: Categoria 4 | E6: 3300 | F6: 3300 | G6: =FIXED(+BASICOS!R6*0.11,2) -> 5.038,77 | H6: =FIXED(+BASICOS!S6*0.11,2) -> 5.527,53 | I6: =FIXED(+BASICOS!T6*0.11,2) -> 5.628,30 | J6: =FIXED(+BASICOS!U6*0.11,2) -> 5.744,19 | K6: =FIXED(+BASICOS!V6*0.11,2) -> 5.844,97
A7: Categoria 5 | C7: 500 | D7: 1000 | E7: 4000 | F7: 5337.89 | G7: =FIXED(+BASICOS!R7*0.14,2) -> 5.337,89 | H7: =FIXED(+BASICOS!S7*0.14,2) -> 5.855,67 | I7: =FIXED(+BASICOS!T7*0.14,2) -> 5.962,43 | J7: =FIXED(+BASICOS!U7*0.14,2) -> 6.085,20 | K7: =FIXED(+BASICOS!V7*0.14,2) -> 6.191,96
A8: Categoria 6 | B8: 2000 | C8: 2500 | D8: 3000 | E8: 5800 | F8: 7307.71 | G8: =FIXED(+BASICOS!R8*0.23,2) -> 7.307,71 | H8: =FIXED(+BASICOS!S8*0.23,2) -> 8.016,56 | I8: =FIXED(+BASICOS!T8*0.23,2) -> 8.162,72 | J8: =FIXED(+BASICOS!U8*0.23,2) -> 8.330,80 | K8: =FIXED(+BASICOS!V8*0.23,2) -> 8.476,95
A9: Categoria 7 | B9: 2000 | C9: 2500 | D9: 3000 | E9: 5500 | F9: 7148.93 | G9: =FIXED(+BASICOS!R9*0.27,2) -> 7.148,93 | H9: =FIXED(+BASICOS!S9*0.27,2) -> 7.842,37 | I9: =FIXED(+BASICOS!T9*0.27,2) -> 7.985,35 | J9: =FIXED(+BASICOS!U9*0.27,2) -> 8.149,77 | K9: =FIXED(+BASICOS!V9*0.27,2) -> 8.292,75

Sheet ADIC CAPACITACION (hidden)
B1: 2 | C1: 3 | D1: 4 | E1: 5 | F1: 6 | G1: 7 | H1: 8 | I1: 9 | J1: 10 | K1: 11 | L1: 12 | M1: 13
A2: Categoría | B2: Abril 2019 | C2: Junio 2019 | D2: Agosto 2019 | E2: Septiembre 2019 | F2: Octubre 2019 | G2: Noviembre 2019 | H2: Diciembre 2019 | I2: Enero 2020 | J2: Marzo 2020 | K2: Abril 2020 | L2: Mayo 2020 | M2: Junio 2020
A3: Categoria 1 | B3: =0.015*BASICOS!L3 -> 868.1238 | C3: =0.015*BASICOS!M3 -> 909.07305 | D3: =+C3*2 -> 1818.1461 | E3: =(0.03*BASICOS!N3) -> 1900.0446 | F3: =(0.03*BASICOS!O3) -> 2063.8446 | G3: =(0.03*BASICOS!P3) -> 2112.9846 | H3: =(0.03*BASICOS!Q3) -> 2112.9846 | I3: =(0.03*BASICOS!R3) -> 2382.9846 | J3: =(0.03*BASICOS!S3) -> 2614.1343 | K3: =ROUND((0.03*BASICOS!T3),2) -> 2661.79 | L3: =ROUND((0.03*BASICOS!U3),2) -> 2716.6 | M3: =ROUND((0.03*BASICOS!V3),2) -> 2764.26
A4: Categoria 2 | B4: =0.02*BASICOS!L4 -> 964.5842 | C4: =0.02*BASICOS!M4 -> 1010.0834 | D4: 2020.1668 | E4: =(0.04*BASICOS!N4) -> 2111.1652 | F4: =(0.04*BASICOS!O4) -> 2293.1652 | G4: =(0.04*BASICOS!P4) -> 2347.7652 | H4: =(0.04*BASICOS!Q4) -> 2347.7652 | I4: =(0.04*BASICOS!R4) -> 2647.7652 | J4: =(0.04*BASICOS!S4) -> 2904.5988 | K4: =ROUND((0.04*BASICOS!T4),2) -> 2957.55 | L4: =ROUND((0.04*BASICOS!U4),2) -> 3018.45 | M4: =ROUND((0.04*BASICOS!V4),2) -> 3071.41
A5: Categoria 3 | B5: =0.025*BASICOS!L5 -> 1003.166 | C5: =0.025*BASICOS!M5 -> 1050.48525 | D5: 2100.9705 | E5: =(0.05*BASICOS!N5) -> 2195.609 | F5: =(0.05*BASICOS!O5) -> 2384.909 | G5: =(0.05*BASICOS!P5) -> 2441.709 | H5: =(0.05*BASICOS!Q5) -> 2441.709 | I5: =(0.05*BASICOS!R5) -> 2753.709 | J5: =(0.05*BASICOS!S5) -> 3020.819 | K5: =ROUND((0.05*BASICOS!T5),2) -> 3075.89 | L5: =ROUND((0.05*BASICOS!U5),2) -> 3139.23 | M5: =ROUND((0.05*BASICOS!V5),2) -> 3194.3
A6: Categoria 4 | B6: =0.03*BASICOS!L6 -> 1001.2326 | C6: =0.03*BASICOS!M6 -> 1048.4607 | D6: 2096.9214 | E6: =(0.06*BASICOS!N6) -> 2191.3776 | F6: =(0.06*BASICOS!O6) -> 2380.3176 | G6: =(0.06*BASICOS!P6) -> 2437.0176 | H6: =(0.06*BASICOS!Q6) -> 2437.0176 | I6: =(0.06*BASICOS!R6) -> 2748.4176 | J6: =(0.06*BASICOS!S6) -> 3015.0144 | K6: =ROUND((0.06*BASICOS!T6),2) -> 3069.98 | L6: =ROUND((0.06*BASICOS!U6),2) -> 3133.2 | M6: =ROUND((0.06*BASICOS!V6),2) -> 3188.16
A7: Categoria 5 | B7: =0.035*BASICOS!L7 -> 972.30175 | C7: =0.035*BASICOS!M7 -> 1018.16505 | D7: 2036.3301 | E7: =(0.07*BASICOS!N7) -> 2128.0567 | F7: =(0.07*BASICOS!O7) -> 2311.5267 | G7: =(0.07*BASICOS!P7) -> 2366.5467 | H7: =(0.07*BASICOS!Q7) -> 2668.9467 | I7: =(0.07*BASICOS!R7) -> 2668.9467 | J7: =(0.07*BASICOS!S7) -> 2927.8347 | K7: =ROUND((0.07*BASICOS!T7),2) -> 2981.21 | L7: =ROUND((0.07*BASICOS!U7),2) -> 3042.6 | M7: =ROUND((0.07*BASICOS!V7),2) -> 3095.98
A8: Categoria 6 | B8: =0.04*BASICOS!L8 -> 925.9892 | C8: =0.04*BASICOS!M8 -> 969.668 | D8: 1939.336 | E8: =(0.08*BASICOS!N8) -> 2026.6936 | F8: =(0.08*BASICOS!O8) -> 2201.4136 | G8: =(0.08*BASICOS!P8) -> 2253.8136 | H8: =(0.08*BASICOS!Q8) -> 2541.8136 | I8: =(0.08*BASICOS!R8) -> 2541.8136 | J8: =(0.08*BASICOS!S8) -> 2788.3696 | K8: =ROUND((0.08*BASICOS!T8),2) -> 2839.21 | L8: =ROUND((0.08*BASICOS!U8),2) -> 2897.67 | M8: =ROUND((0.08*BASICOS!V8),2) -> 2948.5
A9: Categoria 7 | B9: =0.05*BASICOS!L9 -> 964.577 | C9: =0.05*BASICOS!M9 -> 1010.076 | D9: 2020.152 | E9: =(0.1*BASICOS!N9) -> 2111.15 | F9: =(0.1*BASICOS!O9) -> 2293.15 | G9: =(0.1*BASICOS!P9) -> 2347.75 | H9: =(0.1*BASICOS!Q9) -> 2647.75 | I9: =(0.1*BASICOS!R9) -> 2647.75 | J9: =(0.1*BASICOS!S9) -> 2904.582 | K9: =ROUND((0.1*BASICOS!T9),2) -> 2957.54 | L9: =ROUND((0.1*BASICOS!U9),2) -> 3018.44 | M9: =ROUND((0.1*BASICOS!V9),2) -> 3071.39

Sheet ESTIMULO CAPACITACION (hidden)
B1: 2 | C1: 3 | D1: 4
A2: Categoría | B2: Enero 2019 | C2: Febrero 2019 | D2: Diciembre 2019
A3: Categoria 1 | B3: 2400 | C3: 4800 | D3: 4800
A4: Categoria 2 | B4: 2200 | C4: 4400 | D4: 4400
A5: Categoria 3 | B5: 2000 | C5: 4000 | D5: 4000
A6: Categoria 4 | B6: 1800 | C6: 3600 | D6: 3600
A7: Categoria 5 | B7: 1600 | C7: 3200
A8: Categoria 6 | B8: 1500 | C8: 3000
A9: Categoria 7 | B9: 1500 | C9: 3000
